bitfinex-derivatives/quotes_ETHF0:USTF0_20241105
["timestamp","ask_amount","ask_price","bid_price","bid_amount"]
[1730821275822,1.3881,2443.7,2443.1,3.2078]
[1730821276027,1.79739,2443.7,2443.3,0.40933]
[1730821276629,1.79738,2443.7,2443.3,0.40933]
[1730821276826,1.3881,2443.7,2443.4,0.40932]
[1730821277026,1.79737,2443.7,2443.4,0.40932]
[1730821277217,1.79737,2443.7,2443.3,0.40933]
[1730821277825,0.40934,2443.3,2442.7,7.14023854]
[1730821278025,3.2078,2443.6,2442.7,7.14023854]
[1730821278026,4.5604,2443.6,2442.7,3.2078]
[1730821278226,0.40933,2443.4,2443.0,0.40938]
[1730821278731,0.40935,2443.3,2442.9,0.4094]
[1730821278931,0.40935,2443.3,2442.7,3.2078]
[1730821279229,1.3805,2443.5,2442.7,3.2078]
[1730821279537,0.40935,2443.3,2442.9,0.4094]
[1730821280331,0.40936,2443.2,2442.9,0.4094]
[1730821280523,3.2078,2443.3,2442.7,3.2078]
[1730821280724,3.2078,2443.3,2442.7,3.61723]
[1730821280725,0.40938,2443.1,2442.7,3.61723]
[1730821280920,0.40938,2443.1,2442.7,0.40943]
[1730821281126,0.40938,2443.1,2442.8,0.40942]
[1730821281325,0.40936,2443.2,2442.8,0.40942]
[1730821281529,0.40937,2443.2,2442.8,0.40941]
[1730821282222,1.3805,2443.5,2442.9,0.4094]
[1730821282427,0.40935,2443.3,2442.9,0.4094]
[1730821282626,1.3805,2443.5,2442.7,7.14023854]
[1730821282827,4.5604,2443.6,2442.7,7.14023854]
[1730821283136,8.49283854,2443.6,2442.6,1.4383]
[1730821283434,0.40937,2443.1,2442.8,0.40942]
[1730821283931,3.61715,2443.3,2442.9,0.40939]
[1730821284133,0.40935,2443.3,2442.8,0.40942]
[1730821284333,0.40935,2443.3,2442.9,0.40939]
[1730821284736,4.5604,2443.6,2442.7,3.2078]
[1730821284737,5.58363,2443.6,2442.7,3.2078]
[1730821284933,3.2078,2443.3,2442.5,1.4285]
[1730821285233,3.2078,2443.3,2441.7,1.024]
[1730821285234,0.40953,2442.2,2441.7,0.57188096]
[1730821285534,0.40957,2442.0,2441.6,3.2078]
[1730821285739,1.4666,2442.1,2441.6,3.2078]
[1730821286032,40.8,2442.2,2441.7,1.3984]
[1730821286228,1.87608,2442.5,2442.1,0.40954]
[1730821286430,1.87608,2442.5,2442.0,0.40955]
[1730821286639,1.87608,2442.5,2441.9,3.2078]
[1730821286833,40.8,2442.4,2442.0,0.40955]
[1730821287342,41.20949,2442.4,2441.9,3.2078]
[1730821287639,40.8,2442.4,2442.0,0.40955]
[1730821288138,40.8,2442.4,2441.9,3.2078]
[1730821288340,0.40952,2442.3,2441.9,3.61737]
[1730821288536,40.8,2442.4,2441.9,3.61737]
[1730821288726,40.8,2442.4,2442.0,0.40954]
[1730821288933,40.8,2442.4,2442.1,0.40954]
[1730821289134,40.8,2442.4,2441.9,3.2078]
[1730821289735,40.8,2442.4,2442.1,0.40953]
[1730821289933,40.8,2442.4,2442.0,0.40955]
[1730821290539,40.8,2442.4,2442.1,0.40953]
[1730821290934,0.4095,2442.4,2442.0,0.40955]
[1730821291531,42.2666,2442.5,2441.9,3.2078]
[1730821291736,42.67608,2442.5,2442.1,0.40953]
[1730821291935,1.4666,2442.5,2442.3,0.4095]
[1730821292238,1.79527,2442.6,2442.2,0.40952]
[1730821292639,45.329,2442.9,2442.2,3.2078]
[1730821292942,45.329,2442.9,2442.0,1.3145]
[1730821292943,1.73061,2442.9,2442.6,0.40945]
[1730821293148,1.3212,2442.9,2442.5,3.2078]
[1730821293941,0.40948,2442.5,2442.2,0.40952]
[1730821294343,0.40946,2442.6,2442.3,0.4095]
[1730821294641,0.40945,2442.7,2442.4,0.40948]
[1730821294843,1.06101993,2442.8,2442.6,0.40945]
[1730821295046,1.06101993,2442.8,2442.4,3.2078]
[1730821295248,1.3212,2442.9,2442.6,0.40944]
[1730821295743,1.73061,2442.9,2442.6,0.40944]
[1730821296243,1.3212,2442.9,2442.7,0.40943]
[1730821296436,3.80991993,2443.1,2442.9,0.40941]
[1730821296634,4.6391,2443.3,2442.7,3.2078]
[1730821296635,5.70011993,2443.3,2442.7,3.2078]
[1730821296843,5.70011993,2443.3,2442.9,0.40939]
[1730821296844,0.40936,2443.2,2442.9,0.40939]
[1730821297048,1.4313,2443.3,2442.8,1.3157]
[1730821297049,1.84065,2443.3,2443.0,0.40939]
[1730821297342,2.49231993,2443.3,2443.0,0.40939]
[1730821297538,1.06101993,2443.4,2443.2,0.40936]
[1730821297742,1.06101993,2443.4,2443.0,3.61718]
[1730821297945,0.40935,2443.3,2443.0,0.40938]
[1730821298246,1.47036993,2443.3,2442.9,0.40939]
[1730821298547,1.06101993,2443.3,2442.9,0.40941]
[1730821298841,1.06101993,2443.4,2442.8,1.3157]
[1730821299041,1.06101993,2443.4,2443.1,0.40936]
[1730821299247,1.47033993,2443.4,2443.1,0.40936]
[1730821299651,1.06101993,2443.4,2443.2,0.40935]
[1730821300147,1.06101993,2443.4,2443.0,3.2078]
[1730821300148,1.06101993,2443.5,2443.0,3.2078]
[1730821300348,3.06220264,2443.5,2443.2,0.40935]
[1730821300649,1.06101993,2443.4,2443.2,0.40935]
[1730821300947,1.06101993,2443.4,2443.0,3.2078]
[1730821300948,1.06101993,2443.4,2443.3,0.40934]
[1730821301747,0.22740986,2443.4,2443.3,7.70994]
[1730821301952,1.06101993,2443.6,2443.5,0.40931]
[1730821302150,1.59187271,2444.2,2443.5,8.02523854]
[1730821302455,4.70124271,2444.3,2443.9,0.40923]
[1730821302654,4.29207271,2444.3,2443.6,3.2078]
[1730821302840,1.59187271,2444.2,2443.6,3.2078]
[1730821303047,0.40925,2443.9,2443.6,3.2078]
[1730821303244,0.40926,2443.8,2443.6,3.2078]
[1730821303443,0.40926,2443.8,2443.4,1.76821]
[1730821303639,1.59187271,2444.1,2443.4,1.3589]
[1730821303948,0.40935,2443.3,2443.0,3.2078]
[1730821304151,5.79867813,2444.0,2443.0,3.2078]
[1730821304152,1.59187271,2443.5,2443.0,3.2078]
[1730821304358,1.82117,2443.2,2442.8,1.75701]
[1730821304554,1.4118,2443.2,2442.8,1.3476]
[1730821304763,1.4118,2443.2,2442.6,3.2078]
[1730821304764,0.40941,2443.0,2442.6,3.2078]
[1730821304952,0.40942,2442.9,2442.6,3.2078]
[1730821305149,0.40944,2442.7,2442.6,3.2078]
[1730821305349,1.59187271,2443.1,2442.6,3.2078]
[1730821305350,0.40941,2442.9,2442.6,3.2078]
[1730821305555,0.40942,2442.8,2442.6,3.2078]
[1730821305962,1.59187271,2442.9,2442.6,3.2078]
[1730821306162,2.12249695,2443.1,2442.6,3.2078]
[1730821306163,0.40942,2442.8,2442.6,3.2078]
[1730821306457,2.00129271,2442.9,2442.6,3.2078]
[1730821306667,2.12249695,2443.1,2442.6,3.2078]
[1730821306668,0.40943,2442.8,2442.6,3.2078]
[1730821306964,1.59187271,2443.0,2442.6,3.2078]
[1730821306965,1.59187271,2442.9,2442.6,3.2078]
[1730821307158,0.40944,2442.7,2442.6,3.2078]
[1730821307552,4.50304,2442.7,2442.6,3.2078]
[1730821308162,0.40947,2442.5,2442.2,0.40952]
[1730821308360,1.59187271,2442.9,2442.1,4.71683042]
[1730821308555,0.40943,2442.8,2442.4,0.40949]
[1730821308761,0.40944,2442.7,2442.3,0.4095]
[1730821308957,41.20944,2442.7,2442.3,0.4095]
[1730821309653,40.8,2442.7,2442.4,3.2078]
[1730821309857,1.59187271,2442.8,2442.5,0.40946]
[1730821310370,2.00130271,2442.8,2442.4,3.61728]
[1730821310665,0.40943,2442.8,2442.4,3.61728]
[1730821310867,44.0078,2443.0,2442.4,3.2078]
[1730821311054,1.4127,2442.9,2442.3,1.334]
[1730821311257,0.40943,2442.8,2442.3,1.334]
[1730821311458,0.40943,2442.8,2442.4,3.61728]
[1730821311658,0.40941,2442.9,2442.4,3.2078]
[1730821311865,0.40941,2442.9,2442.5,0.40947]
[1730821312066,0.40943,2442.8,2442.4,3.61728]
[1730821312266,0.40941,2442.9,2442.4,3.2078]
[1730821312464,3.2078,2443.0,2442.5,0.40946]
[1730821312772,0.40943,2442.8,2442.5,0.40946]
[1730821313065,0.40942,2442.8,2442.5,0.40946]
[1730821313265,3.2078,2443.0,2442.4,3.2078]
[1730821313466,0.4094,2443.0,2442.7,0.40944]
[1730821313665,0.4094,2443.0,2442.6,0.40945]
[1730821313857,0.4094,2443.0,2442.4,3.2078]
[1730821313858,0.40944,2442.7,2442.4,3.61728]
[1730821314062,0.40943,2442.8,2442.4,3.61728]
[1730821314362,0.40945,2442.7,2442.3,4.9513]
[1730821314558,1.60147479,2442.7,2442.3,1.334]
[1730821314768,0.40948,2442.5,2442.3,1.334]
[1730821315070,1.60147479,2442.7,2442.5,0.40947]
[1730821315263,3.49209972,2442.8,2442.4,0.40948]
[1730821315264,2.95827479,2442.8,2442.4,0.40948]
[1730821315458,3.48489972,2442.9,2442.3,4.5418]
[1730821315459,1.60147479,2442.7,2442.3,4.5418]
[1730821315668,1.60147479,2443.0,2442.9,0.40941]
[1730821315866,1.60147479,2443.0,2442.8,0.40942]
[1730821316172,1.60147479,2443.1,2442.8,0.40942]
[1730821316371,1.60147479,2443.1,2442.6,3.2078]
[1730821316875,1.60147479,2443.1,2442.9,0.40939]
[1730821317365,2.54465972,2443.2,2442.9,0.40939]
[1730821317366,1.60147479,2443.0,2442.9,0.40939]
[1730821318074,1.60147479,2443.1,2442.9,7.3014]
[1730821318370,1.60147479,2443.1,2443.0,1.1496]
[1730821318770,0.40941,2442.9,2442.5,0.40947]
[1730821319067,9.8093632,2443.3,2442.3,3.2078]
[1730821319068,1.60341652,2442.7,2442.3,3.2078]
[1730821319269,1.60341652,2442.7,2442.6,0.40946]
[1730821319566,1.60341652,2442.7,2442.3,3.2078]
[1730821319770,1.60374383,2442.6,2442.3,3.2078]
[1730821319971,1.60374383,2442.5,2442.3,3.2078]
[1730821320470,1.60374383,2442.5,2442.4,0.40949]
[1730821320972,1.60374383,2442.5,2442.4,4.50389]
[1730821321167,1.60374383,2442.6,2442.5,0.40947]
[1730821321369,3.20785751,2443.5,2443.2,0.40936]
[1730821321672,0.207,2444.7,2443.5,3.93243854]
[1730821321967,3.53708113,2444.7,2444.5,3.2078]
[1730821322872,3.53708113,2444.7,2444.5,7.30307201]
[1730821323065,40.8,2445.4,2444.6,0.40911]
[1730821323266,5.6791,2445.5,2444.9,3.2078]
[1730821323669,3.53708113,2445.0,2444.9,3.2078]
[1730821325485,3.53708113,2445.0,2444.9,3.61687]
[1730821325665,2.4713,2445.5,2444.9,3.61687]
[1730821325866,3.53708113,2445.1,2444.9,3.61687]
[1730821326263,3.47608113,2445.1,2444.9,3.2078]
[1730821326477,1.1695,2446.3,2445.0,8.50919032]
[1730821326666,2.64787113,2446.1,2446.0,7.62739032]
[1730821326865,2.64787113,2446.3,2446.0,8.03626032]
[1730821327065,2.64787113,2446.3,2446.0,7.62739032]
[1730821327271,2.64787113,2446.3,2446.2,0.40885]
[1730821327468,2.64787113,2446.3,2446.1,0.40886]
[1730821327677,2.64787113,2446.3,2446.2,0.40885]
[1730821328175,2.64787113,2446.3,2446.0,7.62739032]
[1730821328478,2.64787113,2446.3,2446.2,0.40885]
[1730821328672,2.64787113,2446.3,2446.0,7.62739032]
[1730821329072,2.64787113,2446.3,2446.1,0.40887]
[1730821329372,2.64787113,2446.2,2446.0,8.03626032]
[1730821329678,2.64787113,2446.1,2446.0,8.03626032]
[1730821329876,2.64787113,2446.4,2446.0,7.62739032]
[1730821330068,2.64787113,2446.4,2446.3,3.2078]
[1730821330373,2.64787113,2446.4,2446.3,3.61664]
[1730821330872,2.64787113,2446.4,2446.1,0.40887]
[1730821331177,2.64787113,2446.1,2446.0,3.2078]
[1730821331670,2.64787113,2446.1,2446.0,1.3151]
[1730821331969,2.64787113,2446.1,2445.7,0.40893]
[1730821331970,43.44787113,2446.1,2445.7,0.40893]
[1730821332170,40.8,2446.1,2445.7,0.40893]
[1730821332376,2.64787113,2445.8,2445.7,0.40893]
[1730821332575,2.64787113,2445.8,2445.4,5.5738]
[1730821332576,2.64787113,2445.8,2445.4,5.73425383]
[1730821332875,2.64787113,2445.5,2445.4,5.73425383]
[1730821333075,2.64787113,2445.5,2445.4,5.98279]
[1730821334378,2.64787113,2445.5,2445.4,3.61679]
[1730821334871,2.64787113,2445.5,2445.1,4.4544]
[1730821335065,2.64787113,2445.2,2445.1,3.2078]
[1730821336175,2.64787113,2445.2,2445.1,3.61684]
[1730821338276,2.64787113,2445.2,2445.1,3.2078]
[1730821338479,2.64787113,2445.2,2445.0,0.40905]
[1730821338775,2.64787113,2445.1,2445.0,0.40905]
[1730821339179,2.64787113,2445.1,2444.8,3.2078]
[1730821339382,2.64787113,2444.9,2444.8,3.61689]
[1730821339569,2.64787113,2444.9,2444.8,3.2078]
[1730821339771,2.61937113,2444.9,2444.8,3.2078]
[1730821339972,2.51937113,2444.9,2444.8,3.2078]
[1730821340167,2.51937113,2444.9,2444.5,0.40912]
[1730821340368,2.44787113,2444.6,2444.5,0.40914]
[1730821340675,2.34787113,2444.6,2444.4,0.40914]
[1730821340874,40.8,2445.0,2444.7,0.4091]
[1730821341079,40.8,2445.0,2444.8,0.40909]
[1730821341474,2.32067113,2444.9,2444.8,4.82868032]
[1730821341777,2.32067113,2444.9,2444.8,8.03648032]
[1730821342967,3.2078,2446.1,2444.8,11.71779032]
[1730821343167,3.2078,2445.7,2445.5,0.40896]
[1730821343378,2.32067113,2445.6,2445.5,0.40896]
[1730821343976,2.32067113,2445.6,2445.4,4.82857032]
[1730821344277,2.32067113,2445.5,2445.4,0.40898]
[1730821345680,2.32067113,2445.5,2445.4,3.61678]
[1730821346171,3.2078,2446.1,2445.4,3.2078]
[1730821346373,2.32067113,2445.6,2445.5,0.40897]
[1730821346675,2.32067113,2445.6,2445.5,4.33686464]
[1730821347982,0.4088,2446.6,2445.5,8.01669464]
[1730821348175,3.2078,2446.7,2446.0,3.92789464]
[1730821348375,3.2078,2446.7,2446.0,4.33678464]
[1730821348376,2.32067113,2446.1,2446.0,4.33678464]
[1730821349479,1.1817,2446.6,2446.5,0.4088]
[1730821349983,2.32067113,2446.6,2446.5,0.4088]
[1730821350479,1.1855,2446.9,2446.3,7.13569464]
[1730821350680,2.32067113,2446.7,2446.6,7.54448464]
[1730821351988,1.1855,2446.9,2446.6,7.13569464]
[1730821352173,2.32067113,2446.8,2446.7,0.40877]
[1730821352378,1.2253,2447.2,2446.7,0.40877]
[1730821352379,4.8418,2447.2,2446.7,0.40877]
[1730821352682,2.32067113,2446.8,2446.6,3.2078]
[1730821353006,1.1855,2447.5,2447.0,0.4087]
[1730821353283,3.2078,2447.4,2446.8,3.92789464]
[1730821353476,2.32067113,2446.7,2446.6,3.61658]
[1730821353783,41.9855,2447.5,2446.3,1.2317]
[1730821353784,3.2078,2446.9,2446.3,0.88712887]
[1730821353990,3.2078,2446.4,2445.5,3.92789464]
[1730821354281,3.2078,2446.4,2446.0,0.40888]
[1730821354475,3.2078,2446.4,2445.8,3.92789464]
[1730821354673,3.2078,2446.4,2445.8,4.33680464]
[1730821354876,40.8,2446.3,2445.8,3.92789464]
[1730821355383,40.8,2446.3,2446.0,0.40889]
[1730821355686,40.8,2446.3,2445.8,3.92789464]
[1730821356184,40.8,2446.3,2445.9,0.4089]
[1730821356377,40.8,2446.3,2445.8,4.33680464]
[1730821356688,3.2078,2446.4,2446.1,3.92789464]
[1730821357382,0.40884,2446.3,2445.8,3.92789464]
[1730821357581,3.2078,2446.4,2445.7,3.2078]
[1730821357786,40.8,2446.3,2445.7,3.2078]
[1730821358084,40.8,2446.3,2445.8,0.40892]
[1730821358289,40.8,2446.3,2445.8,0.40891]
[1730821359177,40.8,2446.3,2445.7,0.40894]
[1730821359382,40.8,2446.3,2445.8,0.40891]
[1730821359583,40.8,2446.3,2445.6,4.57974732]
[1730821359785,3.61663,2446.4,2445.9,0.4089]
[1730821359991,3.61663,2446.4,2445.8,0.40891]
[1730821360185,44.0078,2446.4,2445.9,0.4089]
[1730821360691,44.0078,2446.4,2445.6,4.57974732]
[1730821361195,3.2078,2446.4,2445.7,3.2078]
[1730821361393,3.2078,2446.4,2446.2,0.40884]
[1730821361592,3.2078,2446.4,2445.9,4.41807599]
[1730821361593,3.2078,2446.4,2446.1,0.40886]
[1730821361896,3.2078,2446.4,2446.2,0.40884]
[1730821362187,3.2078,2446.4,2445.9,4.41807599]
[1730821362584,3.2078,2446.4,2446.2,0.40885]
[1730821362786,3.2078,2446.4,2446.0,1.61368]
[1730821363086,3.2078,2446.4,2446.1,0.40886]
[1730821363287,3.2078,2446.4,2446.1,0.40887]
[1730821363986,3.2078,2446.4,2446.0,0.40889]
[1730821364688,3.61663,2446.4,2445.9,0.56842782]
[1730821364887,3.2078,2446.4,2446.1,0.40887]
[1730821365078,3.2078,2446.4,2445.8,0.40892]
[1730821365283,3.2078,2446.4,2445.7,3.2078]
[1730821365482,3.2078,2446.4,2446.3,0.40884]
[1730821365794,3.2078,2446.4,2446.2,0.40885]
[1730821365988,3.2078,2446.5,2446.2,0.40885]
[1730821366291,3.2078,2446.5,2446.1,0.40885]
[1730821366491,1.1841,2446.7,2445.9,4.41807599]
[1730821366984,1.1841,2446.7,2446.3,0.40883]
[1730821367393,3.2078,2446.9,2446.3,4.41807599]
[1730821367582,3.2078,2446.9,2446.7,0.40877]
[1730821367778,3.2078,2446.9,2446.5,0.40879]
[1730821367984,3.2078,2446.9,2446.4,1.2089]
[1730821368180,3.2078,2446.9,2446.8,0.40875]
[1730821368387,2.3748,2447.4,2446.6,4.41807599]
[1730821368784,2.3748,2447.4,2447.0,0.40871]
[1730821368990,2.3748,2447.4,2446.6,4.41807599]
[1730821369492,2.78346,2447.4,2446.9,0.40873]
[1730821369891,2.3748,2447.4,2447.1,0.4087]
[1730821370286,2.3748,2447.4,2446.6,4.57575552]
[1730821370695,2.3748,2447.4,2447.0,0.40871]
[1730821370997,2.3748,2447.4,2446.8,3.2078]
[1730821371196,2.3748,2447.4,2447.2,0.40868]
[1730821371490,2.3748,2447.4,2446.8,3.2078]
[1730821371691,2.3748,2447.4,2447.1,0.40869]
[1730821371901,3.2078,2447.5,2447.3,0.40866]
[1730821372189,3.2078,2447.5,2447.2,0.40868]
[1730821372394,3.2078,2447.5,2446.8,3.2078]
[1730821372597,3.61645,2447.5,2447.1,0.4087]
[1730821372787,0.40866,2447.4,2447.0,0.40872]
[1730821372984,3.2078,2447.5,2446.8,3.2078]
[1730821373387,3.2078,2447.8,2447.5,0.40863]
[1730821373591,0.40856,2448.0,2447.5,0.40863]
[1730821373793,0.40857,2448.0,2447.5,0.40863]
[1730821374084,0.40855,2448.0,2447.6,0.40861]
[1730821374286,44.0078,2448.1,2447.1,4.3534]
[1730821374995,3.2078,2448.1,2447.4,7.62587599]
[1730821375201,3.2078,2448.1,2447.8,0.40859]
[1730821375500,2.4053,2448.3,2447.7,0.40859]
[1730821375683,0.40855,2448.0,2447.6,0.40861]
[1730821375888,2.4053,2448.3,2447.4,9.99987599]
[1730821376089,0.40856,2448.0,2447.6,0.40862]
[1730821376290,0.40857,2448.0,2447.5,0.40863]
[1730821376489,0.40859,2447.8,2447.4,0.40865]
[1730821376785,3.2078,2448.1,2447.3,0.40866]
[1730821377092,3.61639,2447.8,2447.1,4.51140314]
[1730821377292,3.2078,2447.8,2447.1,4.51140314]
[1730821377488,2.4057,2447.7,2447.3,0.40866]
[1730821377683,0.69446,2448.0,2447.6,0.40861]
[1730821377888,0.40857,2447.9,2447.5,0.40863]
[1730821378199,3.2078,2447.7,2447.1,4.51140314]
[1730821378398,3.2078,2447.7,2447.1,3.2078]
[1730821378694,3.6555,2447.8,2446.7,4.41807599]
[1730821378695,3.2078,2447.5,2446.7,4.41807599]
[1730821378897,3.2078,2447.5,2447.1,0.40869]
[1730821379098,3.2078,2447.5,2447.2,0.40868]
[1730821379293,3.2078,2447.5,2447.3,0.40867]
[1730821379498,3.6555,2447.8,2447.3,0.40866]
[1730821379499,0.4086,2447.7,2447.3,0.40866]
[1730821379699,6.8633,2447.8,2447.3,0.40866]
[1730821379700,7.27189,2447.8,2447.3,0.40866]
[1730821379895,7.27189,2447.8,2447.4,0.40865]
[1730821380197,0.40861,2447.7,2447.3,0.40866]
[1730821380402,0.40867,2447.3,2446.9,3.61653]
[1730821380702,3.2078,2447.5,2446.9,7.13255077]
[1730821380896,3.61638,2447.9,2447.4,0.40864]
[1730821381112,0.40859,2447.8,2447.4,0.40864]
[1730821381297,3.2078,2447.9,2447.4,0.40864]
[1730821381500,3.2078,2447.9,2447.2,3.92475077]
[1730821381694,3.61638,2447.9,2447.5,0.40863]
[1730821382100,0.4086,2447.8,2447.3,0.40866]
[1730821382299,3.2078,2447.9,2447.2,3.92475077]
[1730821382491,0.40866,2447.4,2447.0,0.40871]
[1730821382691,3.2078,2447.6,2446.9,7.13255077]
[1730821383016,3.2078,2447.6,2446.9,3.61653]
[1730821383017,2.345,2447.3,2446.9,3.61653]
[1730821383197,2.75367,2447.3,2446.9,3.61653]
[1730821383496,2.345,2447.3,2447.1,0.4087]
[1730821383698,2.345,2447.3,2447.0,0.40872]
[1730821383897,3.2078,2447.2,2446.7,0.16261825]
[1730821384098,3.2078,2447.2,2446.6,8.27275077]
[1730821384099,2.345,2447.3,2446.9,4.33347077]
[1730821384299,2.345,2447.3,2446.9,3.92475077]
[1730821384490,3.2078,2447.5,2446.9,3.92475077]
[1730821384695,3.2078,2447.5,2447.3,0.40866]
[1730821385096,3.2078,2447.5,2447.2,3.92475077]
[1730821385397,3.2078,2447.5,2446.9,4.08052054]
[1730821385596,0.40865,2447.4,2447.0,0.40871]
[1730821385798,3.2078,2447.5,2446.9,3.92475077]
[1730821385993,2.4697,2447.4,2447.0,0.40871]
[1730821386193,2.4697,2447.4,2446.9,3.92475077]
[1730821386194,0.40867,2447.3,2446.9,4.33348077]
[1730821386498,2.87836,2447.4,2446.9,4.33348077]
[1730821387000,3.2078,2447.5,2447.2,4.33343077]
[1730821387310,3.2078,2447.5,2447.2,3.92475077]
[1730821387700,3.61644,2447.5,2447.2,3.92475077]
[1730821387897,3.2078,2447.5,2446.9,4.33348077]
[1730821388102,3.2078,2447.5,2446.9,3.92475077]
[1730821388103,2.434,2447.4,2446.9,3.92475077]
[1730821388304,2.434,2447.4,2446.9,4.33347077]
[1730821388504,2.84266,2447.4,2446.9,4.33347077]
[1730821389199,2.84267,2447.4,2446.9,4.33348077]
[1730821389402,0.40867,2447.3,2446.9,4.33348077]
[1730821389701,3.2078,2447.5,2446.9,3.92475077]
[1730821389901,3.2078,2447.5,2447.3,0.40867]
[1730821390304,3.2078,2447.5,2447.4,0.40865]
[1730821390721,3.2078,2447.5,2447.4,4.49425]
[1730821391404,3.61644,2447.5,2447.3,1.2544]
[1730821391593,3.2078,2447.5,2447.3,1.66306]
[1730821391800,3.2078,2447.5,2447.2,3.92475077]
[1730821391801,3.61645,2447.5,2447.2,3.92475077]
[1730821392011,3.2078,2447.5,2447.2,4.33343077]
[1730821392201,0.40864,2447.5,2447.2,3.92475077]
[1730821392407,0.40863,2447.6,2447.2,4.33343077]
[1730821392705,40.8,2447.7,2447.2,3.92475077]
[1730821392904,3.2078,2447.8,2447.5,3.92475077]
[1730821393406,0.2859,2448.0,2447.9,0.40857]
[1730821393701,0.2859,2448.0,2447.9,4.33332077]
[1730821393903,1.218,2448.1,2447.9,3.92475077]
[1730821394500,1.5039,2448.1,2447.9,3.92475077]
[1730821394798,4.7117,2448.1,2447.9,3.92475077]
[1730821395002,0.40858,2447.9,2447.6,5.09835077]
[1730821395210,0.40857,2448.0,2447.6,5.50697077]
[1730821395410,4.7117,2448.1,2447.6,5.09835077]
[1730821395411,0.40858,2447.9,2447.6,5.09835077]
[1730821396208,4.7117,2448.1,2447.4,0.5713413]
[1730821396209,0.40859,2447.8,2447.4,0.5713413]
[1730821396513,4.7117,2448.1,2447.3,3.92475077]
[1730821396714,0.40856,2448.0,2447.6,0.40861]
[1730821397110,4.7117,2448.1,2447.9,3.92475077]
[1730821397308,3.90224,2448.1,2447.9,3.92475077]
[1730821397608,0.40856,2448.0,2447.6,4.33336077]
[1730821397805,0.40857,2447.9,2447.6,3.92475077]
[1730821398018,0.40856,2448.0,2447.6,3.92475077]
[1730821398513,0.40856,2448.0,2447.6,4.33336077]
[1730821399113,0.40856,2448.0,2447.6,3.92475077]
[1730821399518,3.4937,2448.1,2447.6,3.92475077]
[1730821399810,0.40856,2448.0,2447.6,4.33336077]
[1730821400005,0.40856,2448.0,2447.2,4.50995208]
[1730821400006,3.2078,2447.8,2447.2,0.16305208]
[1730821400203,3.2078,2447.5,2446.6,8.32935077]
[1730821400404,3.2078,2447.2,2446.6,8.32935077]
[1730821400604,2.459,2447.7,2446.9,7.13255077]
[1730821400605,3.2078,2447.6,2446.9,7.13255077]
[1730821400804,0.40867,2447.3,2446.9,3.92475077]
[1730821401007,3.2078,2447.3,2446.9,3.92475077]
[1730821401207,3.2078,2447.0,2446.6,1.1968]
[1730821401607,3.2078,2447.0,2446.6,4.4046]
[1730821401912,3.61653,2447.0,2446.6,1.1968]
[1730821402108,0.40875,2446.9,2446.6,1.1968]
[1730821403114,3.61653,2447.0,2446.6,1.1968]
[1730821403316,3.2078,2447.0,2446.6,1.1968]
[1730821403813,3.2078,2447.0,2446.6,1.60558]
[1730821404114,3.61652,2447.0,2446.6,1.60558]
[1730821404308,3.2078,2447.0,2446.8,3.92475077]
[1730821405008,3.2078,2447.0,2446.9,0.40874]
[1730821405213,3.2078,2447.0,2446.8,3.92475077]
[1730821405607,3.2078,2447.0,2446.6,4.4046]
[1730821405911,3.2078,2447.0,2446.5,3.92475077]
[1730821405912,0.40876,2446.8,2446.5,3.92475077]
[1730821407309,2.4932,2446.9,2446.6,0.40879]
[1730821407616,2.4932,2446.9,2446.5,3.92475077]
[1730821407914,4.49964624,2446.9,2446.5,3.92475077]
[1730821408607,4.09089624,2446.9,2446.5,3.92475077]
[1730821408802,4.80549624,2447.0,2446.6,0.40877]
[1730821409008,4.80549624,2447.0,2446.5,3.92475077]
[1730821409208,3.2078,2447.0,2446.9,0.40874]
[1730821409815,3.2078,2447.0,2446.9,1.54104]
[1730821410023,3.2078,2447.0,2446.9,1.1323]
[1730821410408,0.40869,2447.2,2446.9,1.1323]
[1730821410712,1.59769624,2447.2,2446.9,1.1323]
[1730821411215,0.40874,2446.9,2446.5,4.33355077]
[1730821411408,1.60184395,2446.9,2446.5,4.33355077]
[1730821411604,2.01058395,2446.9,2446.5,3.92475077]
[1730821411805,1.60184395,2446.8,2446.5,3.92475077]
[1730821412005,1.60184395,2446.9,2446.5,4.33354077]
[1730821412205,0.40876,2446.8,2446.5,3.92475077]
[1730821412411,3.12880395,2446.8,2446.5,3.92475077]
[1730821413317,4.80964395,2446.6,2446.1,7.13255077]
[1730821413614,2.01066395,2446.4,2446.1,3.92475077]
[1730821413821,1.60184395,2446.4,2446.1,3.92475077]
[1730821414117,0.40881,2446.5,2446.1,3.92475077]
[1730821414118,1.60184395,2446.3,2446.1,3.92475077]
[1730821414412,1.60184395,2446.4,2446.3,0.40884]
[1730821414916,4.80964395,2446.6,2446.3,0.40884]
[1730821415117,4.80964395,2446.6,2446.1,3.92475077]
[1730821415307,0.2861,2446.5,2446.1,3.92475077]
[1730821415513,0.2861,2446.5,2446.3,0.40883]
[1730821415811,0.2861,2446.5,2446.1,3.92475077]
[1730821416215,0.2861,2446.5,2446.4,0.40882]
[1730821416617,3.2078,2446.6,2446.1,3.92475077]
[1730821417011,3.2078,2446.6,2446.5,0.4088]
[1730821417310,2.13026166,2446.9,2446.4,4.33357077]
[1730821417311,0.2861,2446.5,2446.4,4.33357077]
[1730821417817,1.60184395,2447.0,2446.4,8.01195077]
[1730821418020,2.01057395,2447.0,2446.6,0.40878]
[1730821418217,1.60184395,2446.9,2446.4,7.13255077]
[1730821418521,2.01060395,2446.8,2446.4,4.33356077]
[1730821418718,1.60184395,2446.7,2446.1,7.13255077]
[1730821418916,1.60184395,2446.7,2446.2,0.40885]
[1730821419216,5.97444395,2446.8,2446.4,3.92475077]
[1730821419520,0.40878,2446.7,2446.4,3.92475077]
[1730821419718,6.38320395,2446.8,2446.4,4.33356077]